bitfinex-derivatives/quotes_ETHF0:USTF0_20250326
["timestamp","ask_amount","ask_price","bid_price","bid_amount"]
[1742975703198,6.904,2069.7,2069.6,0.96625]
[1742975704203,5.9378,2069.7,2069.6,0.96625]
[1742975705103,5.9378,2069.7,2069.6,2.27575]
[1742975705405,6.904,2069.7,2069.6,2.27575]
[1742975705800,0.96626,2069.6,2069.5,0.96627]
[1742975706002,2.33866,2069.6,2069.5,0.96627]
[1742975709912,1.3724,2069.6,2069.2,0.6478]
[1742975710097,5.42661,2069.5,2069.4,0.96633]
[1742975710505,4.4603,2069.5,2069.4,0.96633]
[1742975710711,4.4603,2069.5,2069.4,1.65583]
[1742975711204,7.0407,2069.7,2069.6,0.96625]
[1742975711405,6.3688,2069.7,2069.6,0.96625]
[1742975711907,7.6791,2069.7,2069.6,1.67035]
[1742975714608,3.2078,2069.7,2069.6,1.67035]
[1742975716718,3.2078,2069.7,2069.6,42.47035]
[1742975718115,4.5986,2069.7,2069.6,42.47035]
[1742975722716,5.5648,2069.7,2069.6,40.8]
[1742975722911,0.96627,2069.6,2069.5,0.96625]
[1742975723112,2.30387,2069.6,2069.5,0.96625]
[1742975723414,1.3376,2069.6,2069.5,0.96625]
[1742975723809,1.3376,2069.6,2069.5,2.24525]
[1742975729424,3.2078,2069.7,2069.6,0.96625]
[1742975729623,3.2078,2069.7,2069.6,2.24505]
[1742975730025,3.2078,2069.7,2069.6,43.04505]
[1742975730824,4.5375,2069.7,2069.6,43.04505]
[1742975731317,1.3297,2069.7,2069.6,43.04505]
[1742975731523,0.00724078,2069.9,2069.8,0.96616]
[1742975732226,0.00724078,2069.9,2069.8,3.66356259]
[1742975732522,0.00724078,2069.9,2069.8,3.66330644]
[1742975732924,1.3063,2070.1,2070.0,0.96606]
[1742975733224,3.2078,2070.3,2070.2,0.96597]
[1742975734521,4.5745,2070.3,2070.2,0.96597]
[1742975735023,4.5745,2070.3,2070.2,1.62257]
[1742975740523,5.54042,2070.3,2070.1,2.34538]
[1742975740725,1.3955,2070.2,2070.1,2.34538]
[1742975740941,1.3955,2070.2,2069.7,5.57345]
[1742975740942,2.0363,2070.2,2069.6,44.0078]
[1742975741139,2.0363,2070.2,2069.8,0.96616]
[1742975741140,0.96613,2069.9,2069.8,0.96616]
[1742975741437,7.32786,2070.0,2069.9,0.96611]
[1742975741635,3.154,2070.0,2069.9,0.96611]
[1742975741835,4.5495,2070.0,2069.9,0.96611]
[1742975742043,1.3955,2070.0,2069.9,0.96611]
[1742975742446,1.3955,2070.0,2069.9,2.35621]
[1742975754850,0.6408,2070.2,2070.1,0.96602]
[1742975755152,2.0389,2070.2,2070.1,0.96602]
[1742975755458,1.3981,2070.2,2070.1,0.96602]
[1742975755649,1.3981,2070.2,2070.1,2.29472]
[1742975756156,2.36407,2070.2,2070.1,1.3287]
[1742975756554,2.36407,2070.2,2070.1,2.29472]
[1742975757559,1.3981,2070.2,2070.1,2.29472]
[1742975758449,2.36407,2070.2,2070.1,2.29472]
[1742975758656,1.3981,2070.2,2070.1,2.29472]
[1742975763163,3.2078,2070.4,2070.3,0.96592]
[1742975764650,4.5031,2070.4,2070.3,2.27212]
[1742975768459,0.96592,2070.3,2070.2,0.96593]
[1742975768663,2.0057,2070.3,2070.2,2.25843]
[1742975768961,2.97162,2070.3,2070.2,2.25843]
[1742975769362,2.0057,2070.3,2070.2,2.25843]
[1742975771960,1.3055,2070.3,2070.2,2.25843]
[1742975772162,6.3518,2070.4,2070.3,0.96592]
[1742975772357,7.6366,2070.4,2070.3,2.99612]
[1742975772557,0.00724078,2070.5,2070.4,0.96588]
[1742975772757,1.29204078,2070.5,2070.4,3.01198]
[1742975774163,0.00724078,2070.5,2070.4,3.01198]
[1742975774961,6.3518,2071.0,2070.6,0.96578]
[1742975775162,1.3057,2070.9,2070.7,2.0215]
[1742975775357,1.3057,2070.9,2070.8,1.3437]
[1742975775763,1.3057,2070.9,2070.8,43.10939]
[1742975777866,3.2078,2071.0,2070.9,0.96564]
[1742975778067,3.2078,2071.0,2070.9,2.24684]
[1742975778366,0.96564,2070.9,2070.8,41.76566]
[1742975778568,2.7662,2070.9,2070.8,41.76566]
[1742975778771,2.0645,2070.9,2070.8,43.04686]
[1742975779066,1.3595,2070.9,2070.8,43.04686]
[1742975779269,2.0645,2070.9,2070.8,43.04686]
[1742975780067,2.7662,2070.9,2070.8,43.04686]
[1742975780270,3.73184,2070.9,2070.8,2.24686]
[1742975781868,2.7662,2070.9,2070.4,3.2078]
[1742975782070,2.27001,2070.8,2070.7,0.96574]
[1742975782868,2.27001,2070.8,2070.7,2.25094]
[1742975784079,4.4483,2070.8,2070.7,2.25094]
[1742975784473,5.41399,2070.8,2070.7,2.25094]
[1742975785473,4.4483,2070.8,2070.7,2.25094]
[1742975788477,5.41399,2070.8,2070.7,2.25094]
[1742975788982,4.4483,2070.8,2070.7,2.25094]
[1742975789185,4.4483,2070.8,2070.7,2.94774]
[1742975790588,1.3043,2070.8,2070.7,2.94774]
[1742975793283,1.3043,2070.8,2070.7,1.2852]
[1742975793685,1.3043,2070.8,2070.7,2.25094]
[1742975797386,0.69404078,2071.1,2070.7,1.2852]
[1742975797591,0.00724078,2071.1,2070.8,2.6771]
[1742975797894,0.00724078,2071.1,2071.0,0.9656]
[1742975798081,1.28784078,2071.1,2071.0,0.9656]
[1742975802896,0.00724078,2071.1,2071.0,0.9656]
[1742975803083,1.41544078,2071.1,2071.0,0.9656]
[1742975803695,0.00724078,2071.1,2071.0,0.9656]
[1742975803902,0.00724078,2071.1,2071.0,2.2565]
[1742975806297,1.37484078,2071.1,2071.0,2.2565]
[1742975811096,2.34039078,2071.1,2071.0,1.2909]
[1742975811300,2.99689078,2071.1,2071.0,2.2565]
[1742975816102,2.03134078,2071.1,2071.0,0.9656]
[1742975816304,1.37484078,2071.1,2071.0,0.9656]
[1742975817204,2.34039078,2071.1,2071.0,0.9656]
[1742975817406,1.37484078,2071.1,2071.0,0.9656]
[1742975818109,2.34039078,2071.1,2071.0,0.9656]
[1742975818307,1.37484078,2071.1,2071.0,0.9656]
[1742975818798,2.34039078,2071.1,2071.0,0.9656]
[1742975824113,2.06244078,2071.1,2070.7,1.3553]
[1742975824311,2.97984,2071.0,2070.9,1.3553]
[1742975824505,2.97984,2071.0,2070.9,2.32094]
[1742975825310,2.97984,2071.0,2070.9,1.3553]
[1742975825511,2.97984,2071.0,2070.9,2.32094]
[1742975827215,2.97984,2071.0,2070.9,1.3553]
[1742975827913,2.97984,2071.0,2070.9,2.32094]
[1742975829216,2.97984,2071.0,2070.9,1.3553]
[1742975829902,2.97984,2071.0,2070.9,2.32094]
[1742975830105,2.97984,2071.0,2070.9,1.3553]
[1742975830409,0.96564,2070.9,2070.8,0.96569]
[1742975830616,2.32214,2070.9,2070.8,2.25929]
[1742975832011,1.3565,2070.9,2070.8,2.25929]
[1742975834214,0.97283078,2071.1,2071.0,0.9656]
[1742975834417,4.11583078,2071.1,2071.0,0.9656]
[1742975835613,0.9656,2071.0,2070.9,2.36081]
[1742975835810,2.9743,2071.0,2070.9,2.36081]
[1742975838710,2.0087,2071.0,2070.9,2.36081]
[1742975839021,2.9743,2071.0,2070.9,2.36081]
[1742975842025,0.96564,2070.9,2070.8,0.96567]
[1742975842224,5.51184,2070.9,2070.8,2.31987]
[1742975843323,0.96569,2070.8,2070.7,1.64711]
[1742975843520,2.30409,2070.8,2070.7,2.0356]
[1742975845525,5.44709,2070.8,2070.7,2.0356]
[1742975845729,5.44709,2070.8,2070.7,3.00134]
[1742975849523,4.4814,2070.8,2070.7,3.00134]
[1742975850930,0.00724078,2071.1,2071.0,0.9656]
[1742975851139,0.7072,2071.6,2071.5,0.96536]
[1742975851422,1.3925,2071.7,2071.6,0.96532]
[1742975851829,2.35777,2071.7,2071.6,0.96532]
[1742975852026,1.3925,2071.7,2071.6,0.96532]
[1742975852218,1.3925,2071.7,2071.6,2.38182]
[1742975853523,2.35777,2071.7,2071.6,1.4165]
[1742975853727,0.96536,2071.5,2071.4,4.18042078]
[1742975853930,0.96536,2071.5,2071.4,3.21504078]
[1742975854123,0.96536,2071.5,2071.4,4.18045078]
[1742975854329,1.61476,2071.5,2071.4,0.00724078]
[1742975854531,0.6494,2071.5,2071.4,0.00724078]
[1742975855025,0.6494,2071.5,2071.4,0.97265078]
[1742975855232,3.143,2071.6,2071.5,0.96536]
[1742975856421,4.5545,2071.6,2071.5,0.96536]
[1742975858824,3.142,2071.7,2071.6,0.96532]
[1742975859021,1.4115,2071.7,2071.6,0.96532]
[1742975859528,1.4115,2071.7,2071.6,41.76532]
[1742975859722,1.4115,2071.7,2071.6,42.44562]
[1742975864931,3.2078,2071.8,2071.7,0.96527]
[1742975865137,4.5195,2071.8,2071.7,3.07317]
[1742975869129,5.48472,2071.8,2071.7,0.96527]
[1742975869727,4.5195,2071.8,2071.7,2.33267]
[1742975869932,0.96527,2071.7,2071.6,0.96528]
[1742975870136,2.24487,2071.7,2071.6,2.33268]
[1742975870636,2.24487,2071.7,2071.6,41.76528]
[1742975870838,0.96532,2071.6,2071.5,2.33273]
[1742975871033,3.56832,2071.6,2071.5,2.33273]
[1742975871339,0.96536,2071.5,2071.4,3.21504078]
[1742975871636,4.5223,2071.5,2071.4,0.00724078]
[1742975871837,5.48766,2071.5,2071.4,41.77262078]
[1742975872035,5.48766,2071.5,2071.4,43.17232078]
[1742975872740,4.5223,2071.5,2071.4,43.17232078]
[1742975874241,5.48766,2071.5,2071.4,43.17232078]
[1742975874634,4.5223,2071.5,2071.4,43.17232078]
[1742975876238,5.2158,2071.5,2071.4,43.17232078]
[1742975876541,6.18116,2071.5,2071.4,0.00724078]
[1742975879441,0.9655,2071.2,2071.1,40.8]
[1742975879636,0.96555,2071.1,2071.0,2.29986]
[1742975879838,3.00925,2071.1,2071.0,1.3343]
[1742975880145,2.0437,2071.1,2071.0,43.0999]
[1742975880346,3.2078,2071.2,2071.1,0.96555]
[1742975880541,3.2078,2071.2,2071.1,2.33175]
[1742975880735,0.96541,2071.4,2071.1,1.3662]
[1742975880932,1.3285,2071.4,2071.3,0.96542]
[1742975881136,2.29391,2071.4,2071.3,0.96542]
[1742975881437,2.29391,2071.4,2071.3,2.97002]
[1742975881741,1.3285,2071.4,2071.3,2.97002]
[1742975882145,2.29391,2071.4,2071.3,2.97002]
[1742975882736,1.3285,2071.4,2071.3,2.97002]
[1742975883038,2.29391,2071.4,2071.3,2.97002]
[1742975887251,2.29391,2071.4,2071.3,2.97006]
[1742975889249,2.29391,2071.4,2071.3,2.0046]
[1742975889449,2.98211,2071.4,2071.3,2.97006]
[1742975890550,2.29391,2071.4,2071.3,2.97006]
[1742975892448,2.29391,2071.4,2071.3,2.0046]
[1742975892952,2.29391,2071.4,2071.3,1.3662]
[1742975893745,2.29391,2071.4,2071.3,2.33166]
[1742975895763,5.50171,2071.4,2071.3,2.33166]
[1742975897146,5.50171,2071.4,2071.3,1.3662]
[1742975897353,0.96546,2071.3,2071.2,0.7018]
[1742975897547,2.26496,2071.3,2071.2,0.7018]
[1742975898654,2.26496,2071.3,2071.2,2.0821]
[1742975900253,0.9655,2071.2,2071.1,0.6745]
[1742975900558,2.3435,2071.2,2071.1,1.9919]
[1742975900753,1.378,2071.2,2071.1,2.95745]
[1742975901853,2.3435,2071.2,2071.1,2.95745]
[1742975903446,1.378,2071.2,2071.1,2.95745]
[1742975906158,3.2078,2071.4,2071.3,0.96546]
[1742975906953,3.2078,2071.4,2071.3,1.64146]
[1742975907658,4.5443,2071.4,2071.3,1.64146]
[1742975908648,1.3365,2071.4,2071.3,1.64146]
[1742975915259,2.30191,2071.4,2071.3,1.64146]
[1742975915661,2.98081,2071.4,2071.3,1.64146]
[1742975915861,2.0154,2071.4,2071.3,1.64146]
[1742975920064,2.98081,2071.4,2071.3,1.64146]
[1742975920278,2.0154,2071.4,2071.3,1.64146]
[1742975921166,5.1554,2071.4,2071.2,1.339]
[1742975921360,0.9655,2071.2,2071.1,1.64004]
[1742975921561,3.2078,2071.2,2071.1,2.97784]
[1742975921862,4.5671,2071.2,2071.1,2.97784]
[1742975924575,5.5326,2071.2,2071.1,2.97784]
[1742975925370,5.5326,2071.2,2071.1,2.30334]
[1742975930270,4.5671,2071.2,2071.1,2.30334]
[1742975930578,5.5326,2071.2,2071.1,2.30334]
[1742975930979,5.5326,2071.2,2071.1,1.3378]
[1742975931780,0.96555,2071.1,2071.0,40.8]
[1742975931981,3.00495,2071.1,2071.0,42.2145]
[1742975932981,3.00495,2071.1,2071.0,43.1801]
[1742975934280,2.0394,2071.1,2071.0,43.1801]
[1742975934682,3.00495,2071.1,2071.0,43.1801]
[1742975935783,3.00495,2071.1,2071.0,2.3801]
[1742975937283,6.14495,2071.1,2071.0,1.4145]
[1742975937480,5.1794,2071.1,2070.7,3.2078]
[1742975937777,0.96564,2070.9,2070.8,2.35858]
[1742975938182,2.25564,2070.9,2070.8,1.3929]
[1742975938780,2.25564,2070.9,2070.8,2.35859]
[1742975938981,2.25564,2070.9,2070.8,1.3929]
[1742975940388,2.25564,2070.9,2070.8,2.35859]
[1742975940572,1.29,2070.9,2070.8,2.35859]
[1742975942079,4.77498,2071.1,2071.0,0.9656]
[1742975942481,0.9656,2071.0,2070.9,3.59471]
[1742975942686,0.9656,2071.0,2070.9,2.27331]
[1742975943477,2.3632,2071.0,2070.9,2.27331]
[1742975944587,1.3976,2071.0,2070.9,2.27331]
[1742975944786,2.3632,2071.0,2070.9,2.27331]
[1742975945390,1.3976,2071.0,2070.9,2.27331]
[1742975946682,3.14,2071.1,2071.0,0.9656]
[1742975946889,17.18328,2071.3,2071.2,0.9655]
[1742975947490,13.0778,2071.3,2071.2,0.9655]
[1742975947690,17.18326,2071.3,2071.2,0.9655]
[1742975948293,18.47366,2071.3,2071.2,0.9655]
[1742975948692,17.5082,2071.3,2071.2,0.9655]
[1742975949091,18.47366,2071.3,2071.2,0.9655]
[1742975949294,17.5082,2071.3,2071.2,0.9655]
[1742975949793,18.47366,2071.3,2071.2,0.9655]
[1742975949994,18.47366,2071.3,2071.2,2.2826]
[1742975950794,8.60366,2071.3,2071.2,2.2826]
[1742975951684,7.6382,2071.3,2071.2,2.2826]
[1742975952085,8.60366,2071.3,2071.2,2.2826]
[1742975953487,5.39586,2071.3,2071.2,2.2826]
[1742975959295,2.25586,2071.3,2071.2,2.2826]
[1742975959485,1.2904,2071.3,2071.2,2.2826]
[1742975961694,2.25586,2071.3,2071.2,2.2826]
[1742975961895,1.2904,2071.3,2071.2,2.2826]
[1742975962395,2.25586,2071.3,2071.2,2.2826]
[1742975962603,1.2904,2071.3,2071.2,2.2826]
[1742975964198,1.2904,2071.3,2071.2,1.3171]
[1742975964199,2.25586,2071.3,2071.2,1.3171]
[1742975964500,2.25586,2071.3,2071.2,2.2826]
[1742975964696,2.25586,2071.3,2071.2,3.5632]
[1742975965001,2.25586,2071.3,2071.2,2.2461]
[1742975965897,2.25586,2071.3,2071.2,1.2806]
[1742975966395,0.96555,2071.1,2071.0,1.3497]
[1742975966599,4.17335,2071.1,2071.0,3.7045]
[1742975966799,7.31235,2071.1,2071.0,2.7389]
[1742975966999,8.59275,2071.1,2071.0,2.0369]
[1742975967303,8.59275,2071.1,2071.0,3.0025]
[1742975970606,8.59275,2071.1,2071.0,2.3548]
[1742975970816,9.25315,2071.1,2071.0,2.3548]
[1742975973300,9.25315,2071.1,2071.0,1.3892]
[1742975974306,9.25315,2071.1,2071.0,2.3548]
[1742975977915,9.25315,2071.1,2071.0,1.3892]
[1742975978508,0.96564,2070.9,2070.8,1.62748]
[1742975978709,0.96564,2070.9,2070.8,2.94958]
[1742975978911,0.96564,2070.9,2070.8,1.9839]
[1742975979111,1.62284,2070.9,2070.8,1.9839]
[1742975979310,0.6572,2070.9,2070.6,41.77301078]
[1742975979505,3.2078,2070.7,2070.6,43.09511078]
[1742975980017,5.56304,2070.7,2070.6,42.12934078]
[1742975980216,5.56304,2070.7,2070.6,1.32934078]
[1742975981316,5.56304,2070.7,2070.6,2.29512078]
[1742975984123,5.56304,2070.7,2070.6,1.32934078]
[1742975985223,5.56304,2070.7,2070.6,2.29512078]
[1742975985423,5.56304,2070.7,2070.6,1.32934078]
[1742975986919,5.56304,2070.7,2070.6,0.00724078]
[1742975987413,5.56304,2070.7,2070.6,1.32244078]
[1742975990230,5.56304,2070.7,2070.6,0.00724078]
[1742975994229,15.43304,2070.7,2070.6,0.00724078]
[1742975996431,0.96578,2070.6,2070.5,1.2928]
[1742975996631,2.94498,2070.6,2070.5,1.2928]
[1742976001135,2.30558,2070.6,2070.5,1.2928]
[1742976007140,0.96588,2070.4,2070.3,0.70424078]
[1742976007342,7.31268,2070.4,2070.3,0.70424078]
[1742976008537,7.31268,2070.4,2070.3,2.04124078]
[1742976014245,3.2078,2070.4,2070.3,3.00716078]
[1742976015049,0.96584,2070.5,2070.4,0.96585]
[1742976015243,1.353,2070.7,2070.4,1.3122]
[1742976015439,3.2078,2070.8,2070.5,0.6634]
[1742976015641,7.31152,2070.8,2070.7,0.96574]
[1742976015859,0.96574,2070.7,2070.6,2.0003]
[1742976016046,3.2078,2070.8,2070.6,2.0003]
[1742976016248,4.17351,2070.8,2070.7,1.3122]
[1742976016442,5.55951,2070.8,2070.7,1.3122]
[1742976016746,5.55951,2070.8,2070.7,2.27794]
[1742976016949,4.17351,2070.8,2070.7,2.27794]
[1742976017248,4.17351,2070.8,2070.7,1.3122]
[1742976017443,5.55951,2070.8,2070.7,1.3122]
[1742976019245,4.5938,2070.8,2070.7,2.27794]
[1742976019447,5.55949,2070.8,2070.7,1.3122]
[1742976020945,5.55949,2070.8,2070.7,2.27794]
[1742976021251,3.2078,2070.8,2070.7,2.27794]
[1742976021645,4.17349,2070.8,2070.7,1.3122]
[1742976021955,4.17349,2070.8,2070.7,2.27794]
[1742976022146,4.17349,2070.8,2070.7,1.3122]
[1742976026654,4.81459,2070.8,2070.7,1.3122]
[1742976027158,0.96588,2070.4,2070.3,3.21504078]
[1742976027361,0.96588,2070.4,2070.3,0.00724078]
[1742976027947,7.31166,2070.5,2070.3,0.97316078]
[1742976028161,3.138,2070.5,2070.3,0.97316078]
[1742976028349,4.10386,2070.5,2070.4,0.6719]
[1742976028555,5.38896,2070.5,2070.4,2.0384]
[1742976033263,5.38896,2070.5,2070.4,3.00428]
[1742976033660,5.38896,2070.5,2070.4,2.0384]
[1742976033858,5.38896,2070.5,2070.4,3.00428]
[1742976035158,1.2851,2070.5,2070.4,3.00428]
[1742976035966,2.25093,2070.5,2070.4,3.00428]
[1742976036367,1.2851,2070.5,2070.4,3.00428]
[1742976036555,2.25093,2070.5,2070.4,3.00428]
[1742976038168,1.2851,2070.5,2070.4,3.00428]
[1742976040168,0.6799,2070.6,2070.5,0.96583]
[1742976040467,2.37545,2070.7,2070.6,0.96578]
[1742976040661,3.2078,2070.8,2070.7,0.96574]
[1742976040867,4.6175,2070.8,2070.7,0.96574]
[1742976041167,5.58319,2070.8,2070.7,0.96574]
[1742976041563,4.6175,2070.8,2070.7,0.96574]
[1742976041766,4.6175,2070.8,2070.7,1.60804]
[1742976042258,4.6175,2070.8,2070.7,2.99144]
[1742976042966,5.58319,2070.8,2070.7,2.99144]
[1742976044367,4.6175,2070.8,2070.7,2.99144]
[1742976044868,5.58319,2070.8,2070.7,2.99144]
[1742976045268,5.58319,2070.8,2070.7,1.3834]
[1742976045469,6.26129,2070.8,2070.7,1.3834]
[1742976046061,0.96578,2070.6,2070.5,1.6724]
[1742976046262,1.3373,2070.7,2070.5,2.0605]
[1742976046469,2.30306,2070.7,2070.6,1.3539]
[1742976047662,2.30304,2070.7,2070.6,2.31968]
[1742976048271,2.30304,2070.7,2070.6,1.3539]
[1742976048569,0.96588,2070.4,2070.3,0.00724078]
[1742976048766,7.31068,2070.4,2070.3,0.00724078]
[1742976049370,8.64398,2070.4,2070.3,0.00724078]
[1742976055683,2.41482,2070.3,2069.8,4.17394]
[1742976055977,0.96606,2070.0,2069.9,2.31179]
[1742976056281,0.96606,2070.0,2069.9,4.64179]
[1742976056671,2.29666,2070.0,2069.9,4.64179]
[1742976061879,0.96606,2070.0,2069.9,4.64176]
[1742976062986,0.96604,2070.1,2070.0,0.96602]
[1742976063178,4.10304,2070.1,2070.0,5.70032]
[1742976063380,4.10304,2070.1,2070.0,2.94032]
[1742976063585,4.10304,2070.1,2070.0,5.26032]
[1742976065483,4.10304,2070.1,2070.0,2.94032]
[1742976066281,3.137,2070.1,2070.0,2.94032]
[1742976066481,3.137,2070.1,2070.0,4.91032]
[1742976066682,3.137,2070.1,2070.0,2.94032]
[1742976067185,1.2949,2070.2,2070.1,0.96602]
[1742976067386,4.4319,2070.2,2070.1,0.96602]
[1742976067586,4.4319,2070.2,2070.1,5.35952]
[1742976068091,4.4319,2070.2,2070.1,3.06952]
[1742976068291,4.17368,2070.4,2070.1,2.1035]
[1742976068292,3.2078,2070.4,2070.1,2.1035]
[1742976068490,1.2801,2070.3,2070.2,2.37227]
[1742976070488,1.2801,2070.3,2070.2,4.54227]
[1742976070787,3.2078,2070.4,2070.3,0.96592]
[1742976070991,4.5608,2070.4,2070.3,2.30032]
[1742976074595,3.2078,2070.4,2070.3,2.30032]
[1742976075288,3.136,2070.5,2070.4,0.96588]
[1742976075595,1.3463,2070.6,2070.5,0.96583]
[1742976075794,7.0372,2070.8,2070.7,0.96574]
[1742976076184,0.00724078,2070.9,2070.7,0.96574]
[1742976076386,0.00724078,2070.9,2070.8,0.96569]
[1742976077088,1.36214078,2070.9,2070.8,2.28359]
[1742976077490,0.00724078,2070.9,2070.8,2.28359]
[1742976080186,0.00724078,2070.9,2070.8,2.65359]
[1742976080490,0.00724078,2070.9,2070.8,2.28359]
[1742976080900,0.00724078,2070.9,2070.8,43.08359]
[1742976081593,0.00724078,2070.9,2070.8,43.43359]
[1742976081795,0.00724078,2070.9,2070.8,43.08359]
[1742976082800,0.00724078,2070.9,2070.8,2.28359]
[1742976084096,0.00724078,2070.9,2070.8,4.78359]
[1742976084488,4.4453,2071.2,2071.1,0.96555]
[1742976084694,1.3093,2071.2,2071.1,0.96555]
[1742976085297,1.3093,2071.2,2071.1,2.32715]
[1742976092102,4.53154078,2071.4,2071.3,0.96546]
[1742976092704,4.53154078,2071.4,2071.3,1.63566]
[1742976093405,3.86804078,2071.4,2071.3,1.63566]
[1742976094900,0.66024078,2071.4,2071.3,1.63566]
[1742976095710,6.3418,2071.7,2071.6,0.96532]
[1742976097203,7.6262,2071.7,2071.6,0.96532]
[1742976099803,7.6262,2071.7,2071.6,1.63732]
[1742976100311,4.4922,2071.7,2071.6,1.63732]
[1742976102305,1.2844,2071.7,2071.6,1.63732]
[1742976102506,0.6654,2071.8,2071.7,0.96527]
[1742976102706,2.0242,2071.8,2071.7,2.35527]
[1742976105010,9.87,2072.8,2071.7,6.23]
[1742976105217,5.94691576,2073.1,2073.0,0.96466]
[1742976105401,2.73911576,2073.1,2073.0,0.96466]
[1742976106314,6.85974576,2073.1,2073.0,0.96466]
[1742976106916,3.70374576,2073.1,2073.0,0.96466]
[1742976107215,0.00724078,2073.3,2072.8,4.61294078]
[1742976107512,1.288,2073.0,2072.9,0.96471]
[1742976107711,1.288,2073.0,2072.9,2.26761]
[1742976112123,1.3714,2073.2,2073.1,0.96462]
[1742976113121,2.6594,2073.2,2073.1,0.96462]
[1742976114715,1.9895,2073.2,2073.1,0.96462]
[1742976114915,0.7015,2073.2,2073.1,0.96462]
[1742976115116,0.7015,2073.2,2073.1,2.35932]
[1742976117224,2.0419,2073.2,2073.1,2.35932]
[1742976122020,2.0419,2073.2,2073.1,0.96462]
[1742976123226,0.7015,2073.2,2073.1,0.96462]
[1742976123428,0.7015,2073.2,2073.1,2.98552]
[1742976124632,2.0069,2073.2,2073.1,2.98552]
[1742976126922,0.7015,2073.2,2073.1,2.98552]
[1742976127118,2.00524078,2073.3,2073.2,0.96457]
[1742976127330,1.31264078,2073.3,2073.2,2.24127]
[1742976129827,0.00724078,2073.3,2073.2,2.24127]
[1742976130434,1.29584078,2073.3,2073.2,2.24127]
[1742976131832,1.95984078,2073.3,2073.2,2.24127]
[1742976134230,2.92436078,2073.3,2073.2,2.24127]
[1742976134931,2.92440078,2073.3,2073.2,0.96457]
[1742976135331,1.95984078,2073.3,2073.2,0.96457]
[1742976135638,1.29584078,2073.3,2073.2,1.66237]
[1742976136135,0.00724078,2073.3,2073.2,1.66237]
[1742976136436,1.28424078,2073.3,2073.2,2.96617]
[1742976137334,2.24876078,2073.3,2073.2,2.96617]
[1742976137634,1.28424078,2073.3,2073.2,2.96617]
[1742976137830,1.93394078,2073.3,2073.2,2.96617]
[1742976140332,0.00724078,2073.3,2073.2,2.96617]
[1742976140832,2.08774078,2073.3,2073.2,2.26837]
[1742976141527,1.38814078,2073.3,2073.2,2.26837]
[1742976143538,0.96437,2073.7,2073.2,3.71519]
[1742976143739,1.9684,2073.6,2073.5,0.9644]
[1742976144036,1.9684,2073.6,2073.4,0.96447]
[1742976144335,1.2971,2073.5,2073.1,3.8781]
[1742976144542,1.62999,2073.4,2073.1,0.6703]
[1742976144733,2.26162,2073.3,2073.2,0.96457]
[1742976144933,1.2971,2073.3,2073.2,0.96457]
[1742976145144,2.26162,2073.3,2073.2,0.96457]
[1742976145633,5.40464,2073.3,2073.2,0.96457]
[1742976146139,4.4401,2073.3,2073.1,0.96457]
[1742976146330,3.00772,2073.2,2072.9,40.8]
[1742976146530,1.3836,2073.1,2073.0,0.96466]
[1742976146830,2.0748,2073.1,2073.0,0.96466]
[1742976147025,3.03942,2073.1,2073.0,0.96466]
[1742976147226,2.0748,2073.1,2073.0,0.96466]
[1742976147435,3.03942,2073.1,2073.0,0.96466]
[1742976147939,2.0748,2073.1,2073.0,0.96466]
[1742976149337,3.03942,2073.1,2073.0,0.96466]
[1742976150127,3.03942,2073.1,2072.9,0.96468]
[1742976150334,4.4855,2073.0,2072.9,0.96468]
[1742976150837,5.45019,2073.0,2072.8,3.21504078]
[1742976151138,1.3435,2072.9,2072.8,4.17980078]
[1742976154333,1.3435,2072.9,2072.5,3.2078]
[1742976154641,0.6395,2072.8,2072.7,0.9648]
[1742976154835,1.3435,2072.9,2072.8,0.96476]
[1742976155137,4.4855,2072.9,2072.8,0.96476]
[1742976155345,3.142,2072.9,2072.8,0.96476]
[1742976156144,7.6699,2073.1,2073.0,0.96466]
[1742976157044,6.3498,2073.1,2073.0,0.96466]
[1742976157431,4.4611,2073.2,2073.1,0.96462]
[1742976157638,0.6395,2073.3,2073.2,0.96457]
[1742976158036,4.5156,2073.4,2073.3,0.96452]
[1742976158235,5.48008,2073.4,2073.3,0.96452]
[1742976158636,0.96452,2073.3,2073.1,1.65709]
[1742976158840,1.3726,2073.2,2073.0,0.96465]
[1742976159141,3.8214,2073.1,2073.0,0.96465]
[1742976159337,0.96467,2073.0,2072.9,0.96469]
[1742976159542,1.3726,2073.0,2072.9,0.96469]
[1742976160246,2.33726,2073.0,2072.9,0.96469]
[1742976160547,1.3726,2073.0,2072.9,0.96469]
[1742976161242,2.33726,2073.0,2072.9,0.96469]
[1742976161746,1.3726,2073.0,2072.8,3.853]
[1742976161941,1.2864,2072.9,2072.8,4.81776]
[1742976162143,2.93021,2072.9,2072.8,4.17256]
[1742976162348,2.93021,2072.9,2072.8,3.2078]
[1742976163546,1.9655,2072.9,2072.8,4.17256]
[1742976163854,2.93021,2072.9,2072.8,3.2078]
[1742976164149,0.96476,2072.8,2072.7,2.25467]
[1742976164340,2.28116,2072.8,2072.7,2.25467]
[1742976164642,2.28116,2072.8,2072.7,1.2899]
[1742976164846,5.42516,2072.8,2072.7,1.2899]
[1742976165846,0.9648,2072.7,2072.6,0.00724078]
[1742976166043,2.9464,2072.7,2072.6,1.42364078]
[1742976166448,2.9464,2072.7,2072.6,0.00724078]
[1742976166854,2.9464,2072.7,2072.6,1.29764078]
[1742976168345,2.9464,2072.7,2072.6,2.26249078]
[1742976168740,2.9464,2072.7,2072.6,1.29764078]